Cogmind - Beta 10.2 @@@ ROGUE MODE // 2020.12.30 @ 03:43:39 Player: Kaspr Result: Destroyed by G-47 Trooper with Particle Gun Performance ------------- Evolutions (0) 0 Regions Visited (1) 200 Robots Destroyed (15) 75 Value Destroyed (365) 365 Prototype IDs (0) 0 Alien Tech Used (0) 0 Bonus (8) 8 TOTAL SCORE: 648 Bonus ------- High Alert Combat Kills 8 Cogmind --------- Core Integrity 0/250 Matter 44/300 Energy 117/125 System Corruption 0% Temperature Cool (211) Movement Flying (37) Location -10/Materials Parts ------- > --- POWER (1) -------- Light Ion Engine > --- PROPULSION (2) --- Flight Unit Flight Unit > --- UTILITY (2) ------ Armor Integrity Analyzer > --- WEAPON (2) ------- Small Laser > --- INVENTORY (4) ---- Small Storage Unit Structural Scanner Integration Mediator Peak State ------------ > --- POWER ------------ Light Ion Engine > --- PROPULSION ------- Flight Unit Flight Unit > --- UTILITY ---------- Small Storage Unit > --- WEAPON ----------- Particle Gun Assault Rifle > --- INVENTORY -------- Small Laser [Rating: 7] Favorites ----------- Power Ion Engine Engine Ion Engine Propulsion Flight Unit Leg Aluminum Leg Flight Unit Flight Unit Utility Small Storage Unit Storage Small Storage Unit Processor Armor Integrity Analyzer Weapon Assault Rifle Energy Gun Particle Gun Ballistic Gun Assault Rifle Launcher Grenade Launcher Special Weapon Mining Laser Build | -11 -10 ------- Run | Scr Mat Slots Evolved . | . . Power . | . . Propulsion . | . . Utility . | . . Weapon . | . . Parts Attached 20 | 7 13 Power 4 | 2 2 Engine 4 | 2 2 Core . | . . Reactor . | . . Propulsion 4 | 2 2 Treads . | . . Leg 2 | 2 . Wheel . | . . Hover . | . . Flight 2 | . 2 Utility 2 | 1 1 Device . | . . Storage 1 | 1 . Processor 1 | . 1 Hackware . | . . Protection . | . . Artifact . | . . Weapon 10 | 2 8 Energy Gun 4 | . 4 Energy Cannon . | . . Ballistic Gun 4 | 2 2 Ballistic Cannon . | . . Launcher 1 | . 1 Special Weapon 1 | . 1 Impact Weapon . | . . Slashing Weapon . | . . Piercing Weapon . | . . Special Melee Weapon . | . . Unidentified Prototypes . | . . Parts Lost 6 | . 6 Power 1 | . 1 Propulsion 1 | . 1 Utility . | . . Weapon 4 | . 4 Highest Loss Streak 3 | . 3 Average Slot Usage (%) 67 | . 67 Engine 8 | . 8 Leg 10 | . 10 Flight 13 | . 13 Storage 11 | . 11 Processor 1 | . 1 Energy Gun 2 | . 2 Ballistic Gun 11 | . 11 Launcher 3 | . 3 Special Weapon 3 | . 3 Naked Turns . | . . Heaviest Build 14 | 13 14 Greatest Support 20 | 20 20 Greatest Overweight (x) 2 | 2 1 Average Overweight (x) . | . . Largest Inventory Capacity 6 | 6 6 Average Capacity 5 | 5 5 Most Carried 4 | 4 4 Average Carried 1 | . 1 Final Capacity 6 | 6 4 Final Carried 3 | 1 3 Class Distribution -------------------- 100% | Mutant Dominant Class ---------------- Mutant | -10/Materials Resources | -11 -10 ----------- Run | Scr Mat Matter Collected 331 | 199 132 Remotely . | . . Salvage Created 372 | . 372 Parts 23 | . 23 Haulers Intercepted . | . . Recyclers Shooed 2 | . 2 Parts Field Recycled . | . . Retrieved Matter . | . . Parts Self-Destructed . | . . Prevented . | . . Kills | -11 -10 ------- Run | Scr Mat Combat Hostiles Destroyed 10 | . 10 Guns 5 | . 5 Cannons 1 | . 1 AOE 4 | . 4 Classes Destroyed 6 | . 6 Worker 2 | . 2 Recycler 1 | . 1 Operator 1 | . 1 Watcher 1 | . 1 Swarmer 2 | . 2 Grunt 8 | . 8 Best Kill Streak 7 | . 7 Combat Bots Only 4 | . 4 Max Kills in Single Turn 2 | . 2 Gunslinging . | . . Exploded 2 | . 2 Melee . | . . Uniques/NPCs Destroyed . | . . Combat | -11 -10 -------- Run | Scr Mat Damage Taken 931 | . 931 Core 257 | . 257 Absorbed by Shields . | . . Core Remaining (%) 100 | 100 . Volleys Fired 42 | . 42 Largest 2 | . 2 Hottest 120 | . 120 Shots Fired 60 | . 60 Gun 49 | . 49 Cannon . | . . Launcher 10 | . 10 Special 1 | . 1 Kinetic 39 | . 39 Thermal 11 | . 11 Explosive 10 | . 10 Electromagnetic . | . . Robot Hit Streak 6 | . 6 Robot Miss Streak 3 | . 3 Penetration Max . | . . Secondary Targets . | . . Shots Hit Robots 34 | . 34 Core Hits 28 | . 28 Critical Hits . | . . Critical Kills . | . . Critical Parts Destroyed . | . . Melee Attacks . | . . Impact . | . . Slashing . | . . Piercing . | . . Sneak Attacks . | . . Combat Hostiles . | . . Follow-up Attacks . | . . Damage Inflicted 879 | . 879 Guns 363 | . 363 Cannons . | . . Explosions 492 | . 492 Melee . | . . Ramming . | . . Kinetic 268 | . 268 Thermal 119 | . 119 Explosive 492 | . 492 Electromagnetic . | . . Impact . | . . Slashing . | . . Piercing . | . . Highest Corruption . | . . Average Corruption . | . . Corruption Purged . | . . Overload Shots . | . . Overflow Damage 10 | . 10 Projectiles . | . . Explosions 10 | . 10 Melee . | . . Knockbacks . | . . Impact . | . . Kinetic . | . . Secondary . | . . Self-Inflicted Damage 32 | . 32 Shots 1 | . 1 Rammed . | . . Targets Rammed . | . . Kicked . | . . Crushed . | . . Highest Temperature 202 | . 202 Average Temperature 53 | . 53 Received Heat Transfer 414 | . 414 Siege Activations . | . . Robots Corrupted . | . . Combat Hostiles . | . . Parts Fried . | . . Impact Corruptions . | . . Robots Melted . | . . Combat Hostiles . | . . Parts Melted 1 | . 1 Heat Transferred 273 | . 273 Parts Sabotaged . | . . Parts Stolen . | . . Parts Stripped . | . . Power Chain Reactions . | . . Missiles Intercepted . | . . Alert | -11 -10 ------- Run | Scr Mat Peak Influence 417 | . 417 Initial . | . . Average 180 | . 210 Maximum Alert Level 2 | . 2 Low Security (%) 53 | 100 45 Level 1 41 | . 48 Level 2 4 | . 5 Level 3 . | . . Level 4 . | . . Level 5 . | . . High Security . | . . Max Security . | . . Squads Dispatched 2 | . 2 Investigation 1 | . 1 Extermination . | . . Reinforcement 1 | . 1 Assault . | . . Garrison . | . . Intercept . | . . Construction Impeded . | . . Haulers Reinforced . | . . Stealth | -11 -10 --------- Run | Scr Mat Distress Signals 3 | . 3 Communications Jammed . | . . Distress Signals . | . . Times Spotted 27 | . 27 Peak Tracking Total 8 | . 8 Tactical Retreats 2 | . 2 Traps | -11 -10 ------- Run | Scr Mat Traps Triggered . | . . Indirectly . | . . Trap Hack Attempts . | . . Triggered . | . . Disarmed . | . . Reprogrammed . | . . Reused . | . . Traps Extracted . | . . Installed . | . . Triggered . | . . Machines | -11 -10 ---------- Run | Scr Mat Machines Disabled 2 | . 2 Max in Single Turn 1 | . 1 Machines Sabotaged . | . . Garrisons Compromised . | . . Overloaded Fab Kills . | . . Fab Network Shutdowns . | . . Hacking | -11 -10 --------- Run | Scr Mat Machines Accessed 5 | . 5 Terminals 4 | . 4 Fabricators . | . . Repair Stations 1 | . 1 Recycling Units . | . . Scanalyzers . | . . Garrison Access . | . . Total Hacks 17 | . 17 Successful 7 | . 7 Failed 10 | . 10 Catastrophic 1 | . 1 Database Lockouts . | . . Manual . | . . Terminals 12 | . 12 Fabricators . | . . Repair Stations 5 | . 5 Recycling Units . | . . Scanalyzers . | . . Garrison Access . | . . Terminal Hacks 7 | . 7 Record 1 | . 1 Alert Level 1 | . 1 Locate Traps 1 | . 1 Dispatch Records 2 | . 2 Registered Components 1 | . 1 Zone Layout 1 | . 1 Fabricator Hacks . | . . Repair Station Hacks . | . . Recycling Unit Hacks . | . . Scanalyzer . | . . Garrison Access Hacks . | . . Unauthorized Hacks . | . . Terminals . | . . Fabricators . | . . Repair Stations . | . . Recycling Units . | . . Scanalyzers . | . . Garrison Access . | . . Data Cores Recovered . | . . Used . | . . Hacking Detections 4 | . 4 Full Trace Events 2 | . 2 Feedback Events . | . . Feedback Blocked . | . . Robot Schematics Acquired . | . . Robots Built . | . . Matter . | . . Time . | . . Total Robot Build Rating . | . . Part Schematics Acquired . | . . Parts Built . | . . Matter . | . . Time . | . . Total Part Build Rating . | . . Parts Repaired . | . . Time . | . . Parts Recycled . | . . Recycled Matter . | . . Retrieved Matter . | . . Retrieved Components . | . . Parts Scanalyzed . | . . Part Schematics Acquired . | . . Parts Damaged . | . . Bothacking | -11 -10 ------------ Run | Scr Mat Used RIF Installer . | . . Robots Hacked . | . . Non-combat . | . . Combat . | . . Robot Hacks Applied . | . . Relay Couplers Released . | . . Robots Rewired . | . . Allies Hacked . | . . Hacks Repelled . | . . Allies | -11 -10 -------- Run | Scr Mat Total Allies . | . . Largest Group . | . . Highest-Rated Group . | . . Highest-Rated Ally . | . . Total Orders . | . . Ally Attacks . | . . Total Damage . | . . Kills . | . . Allies Corrupted . | . . Allies Melted . | . . Intel | -11 -10 ------- Run | Scr Mat Robot Analysis Total . | . . Derelict Logs Recovered . | . . Drone Launches . | . . Drone Recoveries . | . . Exploration | -11 -10 ------------- Run | Scr Mat Turns Passed 475 | 68 407 Spaces Moved 438 | 54 384 Core 23 | 23 . Treads . | . . Legs 130 | 31 99 Wheels . | . . Hover . | . . Flight 285 | . 285 Fastest Speed 37 | 50 37 Average Speed 67 | 103 62 Slowest Speed 150 | 150 150 Overloaded Moves . | . . Propulsion Burnouts . | . . Robots Hopped 2 | . 2 Cave-ins Triggered . | . . Exploration Rate (%) 29 | 5 54 Regions Visited 1 Branch Regions . Pre-discovered Areas . | . . Known Exits Taken . | . . Unknown Exits Taken 1 | 1 . Scrap Searched . | . . Spaces Dug . | . . Terrain Destroyed 47 | . 47 Melee . | . . Projectile . | . . AOE 47 | . 47 Terrain Rammed . | . . Walls Destroyed . | . . Machines Disabled . | . . Actions | -11 -10 --------- Run | Scr Mat Total 555 | 64 491 Wait 38 | . 38 Move 433 | 53 380 Hop 2 | . 2 Pick Up 8 | 3 5 Fast Attach 9 | 4 5 Attach 8 | 2 6 Detach 6 | . 6 Swap 3 | 1 2 Drop 6 | 1 5 Fire 42 | . 42 Melee . | . . Ram . | . . Kick . | . . Crush . | . . Escape Stasis . | . . Rewire . | . . Trap . | . . Miscellaneous . | . . Route ------- -11/Scrapyard -10/Materials (discovered 2 exits: [*Mat x2]) History --------- Turn | Location | Event 5 | -11/Scrapyard | Discovered new exit (range 14) 69 | -11/Scrapyard | Entered Materials 273 | -10/Materials | Core integrity fell below 50% 280 | -10/Materials | Lost 3 parts (1p2w) 315 | -10/Materials | Build established: Mutant 337 | -10/Materials | Discovered new exit (range 9) 418 | -10/Materials | Discovered new exit (range 15) 470 | -10/Materials | Core integrity fell below 20% 476 | -10/Materials | Destroyed by G-47 Trooper with Particle Gun Last Messages --------------- U-05 Engineer lays Concrete. Acquired 12 matter. EXIT=FOUND Acquired Armor Integrity Analyzer. Dropped Assault Rifle. Acquired Integration Mediator. Acquired Structural Scanner. Connecting with Terminal... >>Inventory(Components) Retrieving component inventory records... Found 3 registered component stockpiles: M9BFH6MTEG: Weapon Shielding 82QHOHJOHV: Lrg. Storage Unit A9AIAKPXTV: Lgt. Armor Plating Downloaded coordinate data. Connecting with Repair Station... G-34 Mercenary destroyed. Particle Gun destroyed. Ion Engine melted. G-34 Mercenary destroyed. Map ----- +----------------------------------------------------+ | | | | | | | | | | | | | | | | | ?????????????????###########????????????? | | ?????????????????# #????????????? | | ?????????????????# #????????????? | | ?????????????????# """ #????????????? | | ?????????????????# """ ! #????????????? | | ?????????????????# """ #????????????? | | ?????????????????# "T" #????????????? | | ?????????????????# """ #????????????? | | ?????????????????# #????????????? | | ?????????????????####+######????????????? | | ??????????????????# #????????????? | | ??????????????????# #????????????? | | ??????????????????# #????????????? | | ??????????????????# !=! ###########??? | | ??????????????????## !=! # #??? | | ???????????????????# != # """ #??? | | ???????????????????# # R" #??? | | ???????????????##### @ # """ """ #??? | | ???????????????#[! !%g """ #??? | | ?????????????#!! =% # """ #??? | | ?????????????#!! # """ #??? | | ?????????????# ! # #??? | | ?????????????#** """ ###########??? | | ?????????????#** """ #????????????? | | ?????????????##### """ #????????????? | | ??????????######## #????????????? | | ?????????# ^ ^ #????????????? | | ?????????# """ #????????????? | | ?????????# """ #????????????? | | ?????????# """ #????????????? | | ?????????# #????????????? | | ##?????????# ^ #????????????? | | ?#?????????# """ ###??????????? | | ##?????????# """ #??????????? | | #????? ??# """ #??????????? | | #??? ?# #??????????? | | #? # #??????????? | | #? # """ #??????????? | | #? # """ #??????????? | | #?? # """ #####??????? | | #???##+#### #??????? | | =#????# < #??????? | +----------------------------------------------------+ Best States ------------- Heat Dissipation 25 Energy Generation 10 Energy Capacity 250 Matter Stores 229 Matter Capacity 300 Sight Range 16 Terrain Scan Density 10 Evasion (%) 62 Armor Integrity Analysis 33 Item Schematics ----------------- None Robot Schematics ------------------ None Fabricated ------------ Nothing Alien Tech Used ----------------- None Achievements -------------- None Challenges ------------ None Game ------ Seed FactoryHypercooledBooster Manual? 0 Play Time 00:21:26 Cumulative 4.4 hours Start 2020.12.30 @ 03:19:45 End 2020.12.30 @ 03:43:39 Sessions 1 Manual Loads 0 Difficulty Rogue Special Mode None Game No. 9 Rogue 9 Adventurer 0 Explorer 0 Win Type - Total 0 Types 0/0/0/0/0/0/0/0/0 Lore% 7 Gallery% 7 Achievement% 7 Wizard Run 0 Options --------- ASCII 0 Keyboard 1 Movement Numpad Keybinds 0 Fullscreen 1 Font 18/SmallcapsGlow Map View 76x50 Tactical HUD 0 Map Filters NONE Filters NONE Steam 1 RUN: 8ef174bc-9a3b-470a-8e05-1bb8663973c1